Cogmind - Beta 15 @@@ ROGUE MODE // 2025.05.12 @ 19:48:19 Player: ochotona_princeps Result: Destroyed by G-34 Mercenary with Small Laser Performance ------------- Evolutions (0) 0 Regions Visited (2) 400 Robots Destroyed (17) 85 Value Destroyed (463) 463 Prototype IDs (4) 80 Alien Tech Used (0) 0 Bonus (0) 0 TOTAL SCORE: 1028 Bonus ------- None Cogmind --------- Core Integrity 0/250 Matter 265/300 Energy 100/100 System Corruption 2% Temperature Cool (90) Movement Treading (160) Location -10/Mines Parts ------- > --- POWER (1) -------- (None) > --- PROPULSION (2) --- Light Treads > --- UTILITY (2) ------ Small Storage Unit Core Shielding > --- WEAPON (2) ------- Mining Claw > --- INVENTORY (8) ---- Signal Interpreter Medium Laser Medium Laser Peak State ------------ > --- POWER ------------ Ion Engine > --- PROPULSION ------- Light Treads Light Treads > --- UTILITY ---------- Heat Sink Small Storage Unit > --- WEAPON ----------- Particle Gun Mining Claw > --- INVENTORY -------- Light Ion Engine Compact Wheel Signal Interpreter EM Pulse Gun Medium Laser Medium Laser [Rating: 8] Favorites ----------- Power Ion Engine Engine Ion Engine Propulsion Light Treads Treads Light Treads Wheel Compact Wheel Utility Small Storage Unit Device Heat Sink Storage Small Storage Unit Protection Light Armor Plating Weapon Mining Claw Energy Gun Particle Gun Slashing Weapon Mining Claw Build | -11 -10 -10 ------- Run | Yrd Mat Min Slots Evolved . | . . . Power . | . . . Propulsion . | . . . Utility . | . . . Weapon . | . . . Parts Attached 17 | 7 9 1 Power 2 | 2 . . Engine 2 | 2 . . Core . | . . . Reactor . | . . . Propulsion 6 | 2 4 . Treads 4 | . 4 . Leg . | . . . Wheel 2 | 2 . . Hover . | . . . Flight . | . . . Utility 4 | 1 3 . Device 1 | . 1 . Storage 1 | 1 . . Processor . | . . . Hackware . | . . . Protection 2 | . 2 . Artifact . | . . . Weapon 5 | 2 2 1 Energy Gun 4 | 2 1 1 Energy Cannon . | . . . Ballistic Gun . | . . . Ballistic Cannon . | . . . Launcher . | . . . Special Weapon . | . . . Impact Weapon . | . . . Slashing Weapon 1 | . 1 . Piercing Weapon . | . . . Special Melee Weapon . | . . . Unidentified Prototypes . | . . . Parts Lost 10 | . 5 5 Power 2 | . 1 1 Propulsion 4 | . 2 2 Utility 2 | . 2 . Weapon 2 | . . 2 Highest Loss Streak 5 | . 3 5 To Critical Strikes . | . . . Average Backups 5 | 2 5 4 Power . | . . . Propulsion 1 | 1 1 1 Utility . | . . 1 Weapon 2 | . 2 2 Tool/Special . | . . . Unused Backups 1 | . . 1 Power . | . . . Propulsion . | . . . Utility 1 | . . 1 Weapon . | . . . Tool/Special . | . . . Average Slot Usage (%) 92 | . 92 94 Engine 12 | . 12 14 Treads 17 | . 16 26 Wheel 9 | . 9 . Device 5 | . 6 . Storage 14 | . 14 14 Protection 4 | . 3 14 Energy Gun 15 | . 15 15 Slashing Weapon 12 | . 12 8 Peak Build Rating 8 | 6 8 8 Average Rating 7 | 4 7 7 On Entrance 4 | . 6 8 Naked Turns . | . . . Heaviest Build 17 | 14 17 14 Greatest Support 40 | 32 40 40 Greatest Overweight (x) . | . . . Average Overweight (x) . | . . . Largest Inventory Capacity 8 | 8 8 8 Average Capacity 7 | 7 8 8 Most Carried 7 | 4 7 5 Average Carried 5 | 2 5 4 Final Capacity 8 | 8 8 8 Final Carried 5 | 4 5 3 Class Distribution -------------------- 100% | Mutant Dominant Class ---------------- Mutant | -10/Materials Mutant | -10/Mines Resources | -11 -10 -10 ----------- Run | Yrd Mat Min Matter Collected 375 | 214 161 . Remotely . | . . . Salvage Created 615 | . 507 108 Parts 40 | . 36 4 Haulers Intercepted 2 | . 2 . Recyclers Shooed . | . . . Parts Field Recycled . | . . . Retrieved Matter . | . . . Parts Self-Destructed . | . . . Prevented . | . . . Kills | -11 -10 -10 ------- Run | Yrd Mat Min Combat Hostiles Destroyed 14 | . 12 2 Melee 9 | . 8 1 Guns 5 | . 4 1 Classes Destroyed 4 | . 4 . Hauler 2 | . 2 . Watcher 1 | . 1 . Swarmer 3 | . 3 . Grunt 11 | . 9 2 Best Kill Streak 6 | . 6 1 Combat Bots Only 6 | . 6 1 Max Kills in Single Turn 1 | . 1 1 Gunslinging . | . . . Exploded . | . . . Melee 1 | . 1 1 Uniques/NPCs Destroyed . | . . . Combat | -11 -10 -10 -------- Run | Yrd Mat Min Hostile Shots Fired 115 | . 80 35 Missed 20 | . 15 5 Hits 95 | . 65 30 Projectile 95 | . 65 30 Critical Strikes 4 | . 3 1 Damage Taken 1227 | . 841 386 Core 253 | . 178 75 Absorbed by Shields . | . . . Redirected to Shielding 17 | . . 17 Core Remaining (%) 100 | 100 . . Volleys Fired 25 | . 10 15 Largest 2 | . 2 1 Hottest 115 | . 115 40 Shots Fired 33 | . 18 15 Gun 33 | . 18 15 Cannon . | . . . Launcher . | . . . Special . | . . . Kinetic . | . . . Thermal 18 | . 18 . Explosive . | . . . Electromagnetic 15 | . . 15 Robot Hit Streak 9 | . 8 9 Robot Miss Streak 1 | . 1 1 Penetration Max . | . . . Secondary Targets . | . . . Shots Hit Robots 59 | . 45 14 Core Hits 23 | . 18 5 Critical Kills . | . . . Critical Parts Destroyed . | . . . Critical Strikes . | . . . Melee Attacks 63 | . 61 2 Impact . | . . . Slashing 63 | . 61 2 Piercing . | . . . Sneak Attacks 3 | . 3 . Combat Hostiles . | . . . Follow-up Attacks . | . . . Damage Inflicted 1218 | . 1004 214 Guns 353 | . 163 190 Cannons . | . . . Explosions . | . . . Melee 865 | . 841 24 Ramming . | . . . Kinetic . | . . . Thermal 163 | . 163 . Explosive . | . . . Electromagnetic 190 | . . 190 Impact . | . . . Slashing 865 | . 841 24 Piercing . | . . . Highest Corruption 2 | . 2 2 Average Corruption 2 | . 2 2 Corruption Purged . | . . . Corruption Blocked . | . . . Effects 17 | . 16 1 Message Errors 6 | . 6 . Matter Fused 3 | . 3 . Parts Rejected 1 | . 1 . Data Loss (minor) 3 | . 3 . Data Loss (major) 1 | . . 1 Misfires 3 | . 3 . Overload Shots . | . . . Overflow Damage 31 | . 31 . Projectiles . | . . . Explosions . | . . . Melee 31 | . 31 . Knockbacks . | . . . Impact . | . . . Kinetic . | . . . Secondary . | . . . Self-Inflicted Damage . | . . . Shots . | . . . Rammed . | . . . Targets Rammed . | . . . Kicked . | . . . Crushed . | . . . Highest Temperature 270 | . 270 153 Average Temperature 81 | . 81 81 Received Heat Transfer 726 | . 483 243 Siege Activations . | . . . Martial Activations . | . . . Shielding Activations . | . . . Robots Disrupted . | . . . Combat Hostiles . | . . . Robots Corrupted . | . . . Combat Hostiles . | . . . Parts Fried . | . . . Impact Corruptions . | . . . Robots Melted . | . . . Combat Hostiles . | . . . Parts Melted . | . . . Heat Transferred 407 | . 407 . Parts Sabotaged . | . . . Parts Stolen . | . . . Parts Stripped . | . . . Power Chain Reactions . | . . . Alert | -11 -10 -10 ------- Run | Yrd Mat Min Maximum Alert Level . | . . . Low Security (%) 100 | 100 100 100 Level 1 . | . . . Level 2 . | . . . Level 3 . | . . . Level 4 . | . . . Level 5 . | . . . High Security . | . . . Max Security . | . . . Peak Influence 158 | . 158 62 Initial 22 | . . 22 Average 68 | . 74 30 Influence Increases 534 | . 454 80 Destroy 0b10 Robot/C 280 | . 240 40 Destroy 0b10 Robot/NC 15 | . 15 . Destroy Leader 56 | . 46 10 Successful Hack 27 | . 27 . Destroy Structure 6 | . 6 . Partial Spotted 15 | . 15 . Lose Combat Pursuer 135 | . 105 30 Influence Decreases 512 | . 395 117 Entered New Map 37 | . . 37 Time Decay 375 | . 345 30 Lost Part 100 | . 50 50 Squads Dispatched 2 | . 2 . Investigation 2 | . 2 . Extermination . | . . . Reinforcement . | . . . Assault . | . . . Garrison . | . . . Intercept . | . . . Searches Triggered . | . . . Construction Impeded . | . . . Haulers Reinforced . | . . . Active Scanning Responses . | . . . Cargo Convoy Interrupts . | . . . Stealth | -11 -10 -10 --------- Run | Yrd Mat Min Distress Signals 2 | . 2 . Communications Jammed . | . . . Distress Signals . | . . . Times Spotted 32 | . 26 6 Peak Tracking Total 8 | . 8 3 Tactical Retreats 8 | . 7 1 Traps | -11 -10 -10 ------- Run | Yrd Mat Min Traps Triggered 2 | . 2 . Indirectly . | . . . Trap Hack Attempts . | . . . Triggered . | . . . Disarmed . | . . . Reprogrammed . | . . . Reused . | . . . Traps Extracted . | . . . Installed . | . . . Triggered . | . . . Machines | -11 -10 -10 ---------- Run | Yrd Mat Min Machines Disabled . | . . . Max in Single Turn . | . . . Machines Repaired . | . . . Machines Dismantled . | . . . Machines Sabotaged . | . . . Overloaded Fab Kills . | . . . Hacking | -11 -10 -10 --------- Run | Yrd Mat Min Machines Accessed 8 | . 8 . Terminals 8 | . 8 . Fabricators . | . . . Repair Stations . | . . . Recycling Units . | . . . Scanalyzers . | . . . Garrison Access . | . . . Total Hacks 23 | . 23 . Successful 13 | . 13 . Failed 9 | . 9 . Catastrophic . | . . . Database Lockouts 1 | . 1 . Manual 11 | . 11 . Terminals 23 | . 23 . Fabricators . | . . . Repair Stations . | . . . Recycling Units . | . . . Scanalyzers . | . . . Garrison Access . | . . . Terminal Hacks 8 | . 8 . Robot Analysis 2 | . 2 . Prototype ID Bank 2 | . 2 . Repair Station Index 1 | . 1 . Locate Traps 2 | . 2 . Zone Layout 1 | . 1 . Fabricator Hacks . | . . . Repair Station Hacks . | . . . Recycling Unit Hacks . | . . . Scanalyzer . | . . . Garrison Access Hacks . | . . . Unauthorized Hacks 5 | . 5 . Terminals 5 | . 5 . Botnet 3 | . 3 . Operators 1 | . 1 . Skim 1 | . 1 . Fabricators . | . . . Repair Stations . | . . . Recycling Units . | . . . Scanalyzers . | . . . Garrison Access . | . . . Data Cores Recovered . | . . . Used . | . . . Hacking Detections 8 | . 8 . Full Trace Events 3 | . 3 . Feedback Events . | . . . Feedback Blocked . | . . . Robot Schematics Acquired . | . . . Robots Built . | . . . Authchips . | . . . Time . | . . . Total Robot Build Rating . | . . . Part Schematics Acquired . | . . . Parts Built . | . . . Authchips . | . . . Time . | . . . Total Part Build Rating . | . . . Parts Repaired . | . . . Time . | . . . Parts Recycled . | . . . Recycled Matter . | . . . Retrieved Matter . | . . . Retrieved Components . | . . . Parts Scanalyzed . | . . . Part Schematics Acquired . | . . . Parts Damaged . | . . . Bothacking | -11 -10 -10 ------------ Run | Yrd Mat Min Used RIF Installer . | . . . Robots Hacked . | . . . Non-combat . | . . . Combat . | . . . Robot Hacks Applied . | . . . Relay Couplers Released . | . . . Fabnet Peak Effective % . | . . . Robots Rewired . | . . . Allies Hacked . | . . . Hacks Repelled . | . . . Allies | -11 -10 -10 -------- Run | Yrd Mat Min Total Allies . | . . . Largest Group . | . . . Highest-Rated Group . | . . . Highest-Rated Ally . | . . . Total Orders . | . . . Ally Attacks . | . . . Total Damage . | . . . Kills . | . . . Allies Corrupted . | . . . Allies Melted . | . . . Intel | -11 -10 -10 ------- Run | Yrd Mat Min Active Infowar (turns) . | . . . Robot Analysis Total 2 | . 2 . Derelict Logs Recovered . | . . . Drone Launches . | . . . Drone Recoveries . | . . . Exploration | -11 -10 -10 ------------- Run | Yrd Mat Min Turns Passed 1149 | 58 1022 69 Spaces Moved 638 | 47 572 19 Core 4 | 4 . . Treads 347 | . 328 19 Legs . | . . . Wheels 287 | 43 244 . Hover . | . . . Flight . | . . . Fastest Speed 50 | 50 100 160 Average Speed 132 | 95 134 160 Slowest Speed 160 | 100 160 160 Overloaded Moves . | . . . Propulsion Burnouts . | . . . Robots Hopped . | . . . Potential Cave-ins . | . . . Cave-ins Triggered . | . . . Exploration Rate (%) 36 | 3 95 10 Regions Visited 2 Branch Regions 1 Pre-discovered Areas . | . . . Known Exits Taken . | . . . Unknown Exits Taken 2 | 1 1 . Scrap Searched . | . . . Spaces Dug 5 | . 5 . Terrain Destroyed 5 | . 5 . Melee 5 | . 5 . Projectile . | . . . AOE . | . . . Terrain Rammed . | . . . Walls Destroyed . | . . . Machines Disabled . | . . . Actions | -11 -10 -10 --------- Run | Yrd Mat Min Total 778 | 56 683 39 Wait 25 | . 25 . Move 636 | 46 571 19 Hop . | . . . Pick Up 5 | 3 2 . Fast Attach 11 | 6 5 . Attach 4 | . 2 2 Detach . | . . . Swap 8 | 1 6 1 Drop 1 | . 1 . Fire 25 | . 10 15 Melee 63 | . 61 2 Ram . | . . . Kick . | . . . Crush . | . . . Escape Stasis . | . . . Rewire . | . . . Trap . | . . . Miscellaneous . | . . . Route ------- -11/Scrapyard -10/Materials (discovered 5 exits: [*Mat x3] / [*Min x2]) -10/Mines History --------- Turn | Location | Event 5 | -11/Scrapyard | Discovered new exit (range 15) 59 | -11/Scrapyard | Entered Materials 207 | -10/Materials | Discovered new exit (range 8) 274 | -10/Materials | Discovered new exit (range 15) 314 | -10/Materials | Build established: Mutant 335 | -10/Materials | Central database locked down 416 | -10/Materials | Core integrity fell below 50% 454 | -10/Materials | Discovered new exit (range 11) 594 | -10/Materials | Discovered new exit (range 9) 756 | -10/Materials | Discovered new exit (range 16) 931 | -10/Materials | Lost 3 parts (1p1n1u) 1081 | -10/Materials | Entered Mines 1137 | -10/Mines | Core integrity fell below 20% 1150 | -10/Mines | Destroyed by G-34 Mercenary with Small Laser Last Messages --------------- LOCATION=UNKNOWN GOAL=ESCAPE 01097_ System corrupted: Substantial component data lost. 01114_ Critical hit (Burn: +37). 01122_ G-47 Trooper IFF system glitched. 01122_ G-34 Mercenary suffers critical hit (Burn). 01125_ G-47 Trooper destroyed. 01133_ G-34 Mercenary IFF system glitched. 01134_ Particle Gun destroyed. 01137_ G-34 Mercenary IFF system glitched. 01140_ Lgt. Treads destroyed. 01142_ EM Pulse Gun destroyed. 01145_ Lgt. Treads destroyed. 01146_ R-06 Scavenger collects Corrupted Particle Gun. 01148_ G-34 Mercenary destroyed. 01148_ R-06 Scavenger collects Aluminum Leg. 01150_ Lgt. Ion Engine destroyed. Map ----- +----------------------------------------------------+ | | | | | | | | | | | | | | | | | | | ?????????????????????????????????????????????????? | | ?????????????????????????????????????????????????? | | ?????????????????????????????????????????????????? | | ?????????????????????????????????????????????????? | | ?????????????????????????????????????????????????? | | ????????????????????#############????????????????? | | ????????????????????# #????????????????? | | ?????????????????#### """ #????????????????? | | ?????????????????# """ #????????????????? | | ?????????????????# ## """ #????????????????? | | ?????????????????# ## #????????????????? | | ?????????????????# ##############????????????????? | | ?????????????????# #?????????????????????????????? | | ???????????####### ###???????????????????????????? | | ???? #???????????????????????????? | | ???????????######### #??####?????????????????????? | | ???????????????????# ####@ ## ##????????????????? | | ???????????????????# =%!r #????????????????? | | ???????????????????######gg #?????????? | | ???????????????????????? #?????????? | | ???????????????????????? """" #?????????? | | ????????????????????????#### """" #??????????? | | ????????????????????????????# """"????#??????????? | | ????????????????????????????? ????????????????? | | ?????????????????????????????? ???????????????? | | ?????????????????????????????? ## ??????????????? | | ???????????????????????????????##????????????????? | | ?????????????????????????????????????????????????? | | ?????????????????????????????????????????????????? | | ?????????????????????????????????????????????????? | | ?????????????????????????????????????????????????? | | ?????????????????????????????????????????????????? | | ?????????????????????????????????????????????????? | | ?????????????????????????????????????????????????? | | ?????????????????????????????????????????????????? | | ?????????????????????????????????????????????????? | | ?????????????????????????????????????????????????? | | ?????????????????????????????????????????????????? | | ?????????????????????????????????????????????????? | | ?????????????????????????????????????????????????? | | ?????????????????????????????????????????????????? | +----------------------------------------------------+ Best States ------------- Heat Dissipation 35 Energy Generation 10 Energy Capacity 250 Matter Stores 300 Matter Capacity 300 Sight Range 16 Terrain Scan Density 10 Armor Coverage 150 Core Shielding 20 Evasion (%) 40 Recoil Reduction 2 Item Schematics ----------------- None Robot Schematics ------------------ None Fabricated ------------ Nothing Repaired ---------- Nothing Alien Tech Used ----------------- None Achievements -------------- None Challenges ------------ None Game ------ Seed IonicMicrowarpRipteeth Manual? 0 Play Time 00:07:57 Cumulative 233.3 hours Start 2025.05.12 @ 19:40:55 End 2025.05.12 @ 19:48:19 Sessions 1 Manual Loads 0 Difficulty Rogue Special Mode None Game No. 231 Rogue 170 Adventurer 61 Explorer 0 Win Type - Total 10 Types 8/0/2/0/0/0/0/0/0/0 Lore% 51 Gallery% 62 Achievement% 61 Wizard Run 0 Options --------- Layout 1 ASCII 0 Keyboard 0 Movement Mouse Keybinds 0 Fullscreen 2 Font 32/SmallcapsGlow Map View 50x35 Zoom Use 0% Tactical HUD 1 Map Filters NONE Filters NONE Steam 1 RUN: 003e1fc8-5573-4463-8129-f4a1e0c9fd39